[Event "Late-Titled-Tuesday-Blitz-June-18-2024"]
[Site "Chess.com"]
[Date "2024.06.18"]
[Round "3"]
[White "zverr1"]
[Black "Masterisback04"]
[Result "1-0"]
[WhiteElo "2534"]
[BlackElo "2107"]
[TimeControl "180+1"]
[EndTime "14:29:45 PDT"]
[Termination "zverr1 won on time"]

1. e4 {[%clk 0:03:00.9]} 1... c5 {[%clk 0:02:59.8]} 2. Nf3 {[%clk 0:03:00.2]}
2... Nc6 {[%clk 0:02:59.7]} 3. d4 {[%clk 0:02:59.9]} 3... cxd4 {[%clk
0:02:59.9]} 4. Nxd4 {[%clk 0:03:00.8]} 4... e5 {[%clk 0:03:00.1]} 5. Nb5 {[%clk
0:02:59]} 5... d6 {[%clk 0:02:59.9]} 6. N1c3 {[%clk 0:02:56.7]} 6... a6 {[%clk
0:02:59.7]} 7. Na3 {[%clk 0:02:57.2]} 7... b5 {[%clk 0:03:00.2]} 8. Nd5 {[%clk
0:02:57.7]} 8... Nge7 {[%clk 0:03:00.8]} 9. c4 {[%clk 0:02:58.1]} 9... Nxd5
{[%clk 0:03:00.2]} 10. exd5 {[%clk 0:02:56.4]} 10... Nd4 {[%clk 0:02:56.5]} 11.
Be3 {[%clk 0:02:50.4]} 11... Be7 {[%clk 0:02:50.4]} 12. Bd3 {[%clk 0:02:28.4]}
12... O-O {[%clk 0:02:30.3]} 13. O-O {[%clk 0:02:14.6]} 13... Nf5 {[%clk
0:01:46.1]} 14. Bd2 {[%clk 0:02:06.7]} 14... Nh4 {[%clk 0:01:43.8]} 15. g3
{[%clk 0:01:51]} 15... Ng6 {[%clk 0:01:43.2]} 16. cxb5 {[%clk 0:01:44.8]} 16...
f5 {[%clk 0:01:41.6]} 17. f4 {[%clk 0:01:31.1]} 17... e4 {[%clk 0:01:38.3]} 18.
Bc4 {[%clk 0:01:23.1]} 18... axb5 {[%clk 0:01:29.4]} 19. Nxb5 {[%clk 0:01:19.3]}
19... Qb6+ {[%clk 0:01:01.7]} 20. Kh1 {[%clk 0:01:17.2]} 20... Bb7 {[%clk
0:00:57.8]} 21. Qe2 {[%clk 0:01:02.6]} 21... Kh8 {[%clk 0:00:46.3]} 22. Be3
{[%clk 0:01:01]} 22... Qa5 {[%clk 0:00:44.4]} 23. a4 {[%clk 0:01:00.3]} 23...
Rfc8 {[%clk 0:00:25.3]} 24. b3 {[%clk 0:00:55.1]} 24... Rd8 {[%clk 0:00:10.8]}
25. Bd4 {[%clk 0:00:52.1]} 25... Rac8 {[%clk 0:00:10.1]} 26. g4 {[%clk
0:00:29.8]} 26... Bf8 {[%clk 0:00:09.1]} 27. gxf5 {[%clk 0:00:27.5]} 27... Ne7
{[%clk 0:00:06.5]} 28. f6 {[%clk 0:00:24.1]} 28... Nxd5 {[%clk 0:00:06.9]} 29.
fxg7+ {[%clk 0:00:24.8]} 29... Bxg7 {[%clk 0:00:07.4]} 30. Qb2 {[%clk
0:00:16.5]} 30... Rd7 {[%clk 0:00:02.5]} 31. Rg1 {[%clk 0:00:13.9]} 31... Rcc7
{[%clk 0:00:02.2]} 32. Nxc7 {[%clk 0:00:12.6]} 32... Qxc7 {[%clk 0:00:03.1]} 33.
Rxg7 {[%clk 0:00:07.4]} 33... Rxg7 {[%clk 0:00:04]} 34. Rg1 {[%clk 0:00:07.7]}
34... e3 {[%clk 0:00:02.2]} 35. Bxg7+ {[%clk 0:00:06.8]} 35... Kg8 {[%clk
0:00:01.6]} 36. Qd4 {[%clk 0:00:04.6]} 1-0

[Event "Late-Titled-Tuesday-Blitz-June-18-2024"]
[Site "Chess.com"]
[Date "2024.06.18"]
[Round "3"]
[White "baki83"]
[Black "hoshiboshi"]
[Result "1-0"]
[WhiteElo "2811"]
[BlackElo "2237"]
[TimeControl "180+1"]
[EndTime "14:29:47 PDT"]
[Termination "baki83 won on time"]

1. e4 {[%clk 0:02:57.2]} 1... c5 {[%clk 0:02:59.1]} 2. Nf3 {[%clk 0:02:57.1]}
2... d6 {[%clk 0:02:57.6]} 3. Bb5+ {[%clk 0:02:57.2]} 3... Bd7 {[%clk
0:02:55.3]} 4. Bxd7+ {[%clk 0:02:55.9]} 4... Qxd7 {[%clk 0:02:56.2]} 5. c4
{[%clk 0:02:54.8]} 5... Nc6 {[%clk 0:02:54.2]} 6. Nc3 {[%clk 0:02:54.5]} 6... g6
{[%clk 0:02:50.3]} 7. d4 {[%clk 0:02:53.6]} 7... cxd4 {[%clk 0:02:50.1]} 8. Nxd4
{[%clk 0:02:53.8]} 8... Bg7 {[%clk 0:02:50.7]} 9. Be3 {[%clk 0:02:53.8]} 9...
Nf6 {[%clk 0:02:50.1]} 10. f3 {[%clk 0:02:53.6]} 10... O-O {[%clk 0:02:47.8]}
11. O-O {[%clk 0:02:50.3]} 11... a6 {[%clk 0:02:46.2]} 12. Qd3 {[%clk 0:02:49]}
12... Ne5 {[%clk 0:02:38.4]} 13. Qe2 {[%clk 0:02:48.7]} 13... Rac8 {[%clk
0:02:31.2]} 14. b3 {[%clk 0:02:48.8]} 14... b5 {[%clk 0:02:26.4]} 15. Nd5 {[%clk
0:02:48.9]} 15... Nxd5 {[%clk 0:02:06.8]} 16. cxd5 {[%clk 0:02:49.8]} 16... h5
{[%clk 0:01:50.7]} 17. h3 {[%clk 0:02:38.2]} 17... Qb7 {[%clk 0:01:42]} 18. Rac1
{[%clk 0:02:29]} 18... Nd7 {[%clk 0:01:40.8]} 19. Nc6 {[%clk 0:02:26]} 19...
Rfe8 {[%clk 0:01:28.9]} 20. Rc2 {[%clk 0:02:04.8]} 20... Ne5 {[%clk 0:01:12.4]}
21. Rfc1 {[%clk 0:02:02.3]} 21... Rc7 {[%clk 0:01:07.7]} 22. Nxe5 {[%clk
0:01:58.2]} 22... Rxc2 {[%clk 0:01:04]} 23. Qxc2 {[%clk 0:01:58.4]} 23... Bxe5
{[%clk 0:01:01.8]} 24. Qc6 {[%clk 0:01:58.7]} 24... Qa8 {[%clk 0:00:48.4]} 25.
Qxa8 {[%clk 0:01:49.1]} 25... Rxa8 {[%clk 0:00:48]} 26. Rc7 {[%clk 0:01:49]}
26... Bf6 {[%clk 0:00:47.1]} 27. Kf2 {[%clk 0:01:39.1]} 27... Kf8 {[%clk
0:00:46.7]} 28. Ke2 {[%clk 0:01:39]} 28... Ke8 {[%clk 0:00:46.6]} 29. Kd3 {[%clk
0:01:38.1]} 29... Kd8 {[%clk 0:00:46.9]} 30. Bb6 {[%clk 0:01:38.1]} 30... Ke8
{[%clk 0:00:43]} 31. g3 {[%clk 0:01:27.3]} 31... h4 {[%clk 0:00:38.3]} 32. g4
{[%clk 0:01:24.3]} 32... Bb2 {[%clk 0:00:30]} 33. Ba5 {[%clk 0:01:18.9]} 33...
Be5 {[%clk 0:00:28.2]} 34. Be1 {[%clk 0:01:10.1]} 34... g5 {[%clk 0:00:27]} 35.
Bd2 {[%clk 0:01:09.4]} 35... Bf6 {[%clk 0:00:25.2]} 36. f4 {[%clk 0:01:05.5]}
36... gxf4 {[%clk 0:00:23.7]} 37. Bxf4 {[%clk 0:01:06.1]} 37... Kd8 {[%clk
0:00:22.6]} 38. Rc6 {[%clk 0:01:05.6]} 38... Kd7 {[%clk 0:00:22]} 39. Bd2 {[%clk
0:00:52.7]} 39... a5 {[%clk 0:00:20.7]} 40. Rb6 {[%clk 0:00:51.6]} 40... b4
{[%clk 0:00:20.6]} 41. Rc6 {[%clk 0:00:51.1]} 41... Be5 {[%clk 0:00:16.9]} 42.
Rc4 {[%clk 0:00:48.8]} 42... Bg3 {[%clk 0:00:16]} 43. Be3 {[%clk 0:00:48.1]}
43... Rb8 {[%clk 0:00:15]} 44. Ba7 {[%clk 0:00:47.1]} 44... Rb7 {[%clk
0:00:15.1]} 45. Bd4 {[%clk 0:00:47.5]} 45... Rc7 {[%clk 0:00:15.5]} 46. Bb6
{[%clk 0:00:45.8]} 46... Rxc4 {[%clk 0:00:12.2]} 47. Kxc4 {[%clk 0:00:45]} 47...
e6 {[%clk 0:00:08.9]} 48. Bxa5 {[%clk 0:00:44]} 48... exd5+ {[%clk 0:00:05.5]}
49. Kxd5 {[%clk 0:00:40.2]} 49... Be1 {[%clk 0:00:05.2]} 50. a3 {[%clk
0:00:31.7]} 50... bxa3 {[%clk 0:00:02.6]} 51. Bxe1 {[%clk 0:00:31.5]} 51... a2
{[%clk 0:00:03.3]} 52. Bc3 {[%clk 0:00:32.1]} 1-0

[Event "Late-Titled-Tuesday-Blitz-June-18-2024"]
[Site "Chess.com"]
[Date "2024.06.18"]
[Round "3"]
[White "MaestroCheck"]
[Black "Hakiki_satranc"]
[Result "1-0"]
[WhiteElo "2610"]
[BlackElo "2436"]
[TimeControl "180+1"]
[EndTime "14:29:48 PDT"]
[Termination "MaestroCheck won by resignation"]

1. e4 {[%clk 0:03:00.9]} 1... d5 {[%clk 0:03:00.6]} 2. exd5 {[%clk 0:02:59.7]}
2... Qxd5 {[%clk 0:03:01.5]} 3. Nc3 {[%clk 0:02:57.9]} 3... Qd8 {[%clk
0:03:02.4]} 4. d4 {[%clk 0:02:56.4]} 4... Nf6 {[%clk 0:03:03.3]} 5. Nf3 {[%clk
0:02:56.4]} 5... g6 {[%clk 0:03:03.8]} 6. Bf4 {[%clk 0:02:52.6]} 6... Bg7 {[%clk
0:03:03]} 7. Qd2 {[%clk 0:02:52.9]} 7... a6 {[%clk 0:02:54.9]} 8. Bh6 {[%clk
0:02:51.1]} 8... Bxh6 {[%clk 0:02:48.3]} 9. Qxh6 {[%clk 0:02:52]} 9... Bg4
{[%clk 0:02:48.1]} 10. Qf4 {[%clk 0:02:46.3]} 10... Bxf3 {[%clk 0:02:44.5]} 11.
Qxf3 {[%clk 0:02:47.2]} 11... Nc6 {[%clk 0:02:43.9]} 12. d5 {[%clk 0:02:33.5]}
12... Ne5 {[%clk 0:02:32.2]} 13. Qe2 {[%clk 0:02:21.7]} 13... Qd6 {[%clk
0:02:27.4]} 14. O-O-O {[%clk 0:02:19.9]} 14... O-O {[%clk 0:02:22.6]} 15. h4
{[%clk 0:02:18.1]} 15... h5 {[%clk 0:02:07.2]} 16. f3 {[%clk 0:02:07.4]} 16...
b5 {[%clk 0:02:06.8]} 17. Ne4 {[%clk 0:02:04.7]} 17... Nxe4 {[%clk 0:02:06]} 18.
Qxe4 {[%clk 0:02:05]} 18... Qf6 {[%clk 0:01:34.2]} 19. Be2 {[%clk 0:01:58.4]}
19... Rab8 {[%clk 0:01:17.3]} 20. g4 {[%clk 0:01:53.9]} 20... Nc4 {[%clk
0:01:16.3]} 21. Bxc4 {[%clk 0:01:36.7]} 21... bxc4 {[%clk 0:01:17.2]} 22. c3
{[%clk 0:01:36.8]} 22... hxg4 {[%clk 0:01:10.9]} 23. fxg4 {[%clk 0:01:33.4]}
23... Rb6 {[%clk 0:00:58]} 24. g5 {[%clk 0:01:23.7]} 24... Qf2 {[%clk
0:00:21.4]} 25. Rd2 {[%clk 0:01:21.7]} 25... Qg3 {[%clk 0:00:22]} 26. Qxc4
{[%clk 0:01:13.7]} 26... Rfb8 {[%clk 0:00:19.4]} 27. Qe2 {[%clk 0:00:53.6]}
27... Qf4 {[%clk 0:00:17.9]} 28. Kb1 {[%clk 0:00:41.6]} 28... e6 {[%clk
0:00:16.6]} 29. h5 {[%clk 0:00:38.7]} 29... exd5 {[%clk 0:00:14.5]} 30. hxg6
{[%clk 0:00:38.4]} 30... Qf5+ {[%clk 0:00:14.1]} 31. Ka1 {[%clk 0:00:36.9]}
31... Qxg6 {[%clk 0:00:13.7]} 32. Qe5 {[%clk 0:00:27.5]} 32... Qg7 {[%clk
0:00:13.2]} 33. Qxd5 {[%clk 0:00:21.5]} 33... Rd6 {[%clk 0:00:09.9]} 34. Qg2
{[%clk 0:00:20.4]} 34... Rxd2 {[%clk 0:00:09.5]} 35. Qxd2 {[%clk 0:00:21.3]}
35... a5 {[%clk 0:00:09.8]} 36. Qf4 {[%clk 0:00:20.4]} 36... Rc8 {[%clk
0:00:08.1]} 37. Qf5 {[%clk 0:00:20.3]} 37... Rd8 {[%clk 0:00:07.5]} 38. Qxa5
{[%clk 0:00:20.9]} 38... Qg6 {[%clk 0:00:05.4]} 39. Qxc7 {[%clk 0:00:21]} 39...
Re8 {[%clk 0:00:05.4]} 40. Qf4 {[%clk 0:00:20.8]} 40... Qc6 {[%clk 0:00:04.9]}
41. Qh4 {[%clk 0:00:19.5]} 41... Kf8 {[%clk 0:00:03.3]} 42. Qh8+ {[%clk
0:00:19.1]} 42... Ke7 {[%clk 0:00:03.9]} 43. Re1+ {[%clk 0:00:19.6]} 43... Kd8
{[%clk 0:00:02.8]} 44. Qxe8+ {[%clk 0:00:19.8]} 44... Qxe8 {[%clk 0:00:03.4]}
45. Rxe8+ {[%clk 0:00:20.5]} 45... Kxe8 {[%clk 0:00:04.3]} 46. a4 {[%clk
0:00:21.1]} 46... Kd7 {[%clk 0:00:04.9]} 47. a5 {[%clk 0:00:21.8]} 47... Kc7
{[%clk 0:00:05.8]} 48. b4 {[%clk 0:00:22.1]} 1-0

[Event "Late-Titled-Tuesday-Blitz-June-18-2024"]
[Site "Chess.com"]
[Date "2024.06.18"]
[Round "3"]
[White "InadaC"]
[Black "DanylaBagrov"]
[Result "0-1"]
[WhiteElo "2233"]
[BlackElo "2510"]
[TimeControl "180+1"]
[EndTime "14:29:48 PDT"]
[Termination "DanylaBagrov won by checkmate"]

1. d4 {[%clk 0:03:00.9]} 1... d6 {[%clk 0:03:00]} 2. c4 {[%clk 0:02:57.4]} 2...
e5 {[%clk 0:02:59.9]} 3. dxe5 {[%clk 0:02:55.8]} 3... dxe5 {[%clk 0:03:00.8]} 4.
Qxd8+ {[%clk 0:02:56]} 4... Kxd8 {[%clk 0:03:00.9]} 5. e3 {[%clk 0:02:56.2]}
5... Nc6 {[%clk 0:02:48.3]} 6. a3 {[%clk 0:02:55]} 6... Bf5 {[%clk 0:02:36]} 7.
Nc3 {[%clk 0:02:49.7]} 7... Nf6 {[%clk 0:02:33.7]} 8. f3 {[%clk 0:02:47.8]} 8...
e4 {[%clk 0:02:31.4]} 9. g4 {[%clk 0:02:46.4]} 9... Bg6 {[%clk 0:02:27.4]} 10.
g5 {[%clk 0:02:44.4]} 10... Nd7 {[%clk 0:02:25.7]} 11. fxe4 {[%clk 0:02:41.8]}
11... Nde5 {[%clk 0:02:12.4]} 12. Bd2 {[%clk 0:02:36.2]} 12... h6 {[%clk
0:02:01.5]} 13. gxh6 {[%clk 0:02:34.1]} 13... Rxh6 {[%clk 0:02:02.4]} 14. O-O-O
{[%clk 0:02:33.1]} 14... Ke8 {[%clk 0:01:46.5]} 15. Bg2 {[%clk 0:02:32.1]} 15...
Nd3+ {[%clk 0:01:43.7]} 16. Kc2 {[%clk 0:02:16.2]} 16... Nf2 {[%clk 0:01:43.4]}
17. Nge2 {[%clk 0:02:04.1]} 17... Nxh1 {[%clk 0:01:40]} 18. Rxh1 {[%clk
0:02:02.6]} 18... Ne5 {[%clk 0:01:30.5]} 19. b3 {[%clk 0:01:51.2]} 19... c6
{[%clk 0:01:23.7]} 20. Nf4 {[%clk 0:01:49.5]} 20... Rd8 {[%clk 0:01:12.9]} 21.
h4 {[%clk 0:01:44.9]} 21... Be7 {[%clk 0:01:04.1]} 22. h5 {[%clk 0:01:40.6]}
22... Bh7 {[%clk 0:01:04.7]} 23. Be1 {[%clk 0:01:20]} 23... Ng4 {[%clk
0:00:54.9]} 24. Rh3 {[%clk 0:01:06.9]} 24... Bxa3 {[%clk 0:00:43.1]} 25. Bf3
{[%clk 0:01:06.9]} 25... Nxe3+ {[%clk 0:00:37.2]} 26. Kb1 {[%clk 0:01:03.5]}
26... Bb4 {[%clk 0:00:29.4]} 27. Nfe2 {[%clk 0:00:45.4]} 27... Nd1 {[%clk
0:00:24.8]} 28. Kc2 {[%clk 0:00:40.1]} 28... Nxc3 {[%clk 0:00:22.7]} 29. Nxc3
{[%clk 0:00:39.2]} 29... f5 {[%clk 0:00:19]} 30. Bh4 {[%clk 0:00:34.3]} 30...
fxe4 {[%clk 0:00:17.7]} 31. Bxd8 {[%clk 0:00:32.2]} 31... exf3+ {[%clk
0:00:17.5]} 32. Kb2 {[%clk 0:00:29.8]} 32... Bxc3+ {[%clk 0:00:16.8]} 33. Kxc3
{[%clk 0:00:28.4]} 33... Kxd8 {[%clk 0:00:17.7]} 34. Rxf3 {[%clk 0:00:27.5]}
34... Rxh5 {[%clk 0:00:17.4]} 35. Rf7 {[%clk 0:00:27.5]} 35... Kc8 {[%clk
0:00:14]} 36. Rxg7 {[%clk 0:00:27]} 36... Bf5 {[%clk 0:00:14.5]} 37. Kb4 {[%clk
0:00:24.9]} 37... Bd7 {[%clk 0:00:10.6]} 38. Rg3 {[%clk 0:00:22.4]} 38... a5+
{[%clk 0:00:10.8]} 39. Ka4 {[%clk 0:00:21]} 39... Kc7 {[%clk 0:00:11.3]} 40. Re3
{[%clk 0:00:19.4]} 40... Rh3 {[%clk 0:00:10.8]} 41. Re5 {[%clk 0:00:16.8]} 41...
b6 {[%clk 0:00:10.1]} 42. c5 {[%clk 0:00:15.1]} 42... b5+ {[%clk 0:00:09.8]} 43.
Kxa5 {[%clk 0:00:15.3]} 43... Rxb3 {[%clk 0:00:10.1]} 44. Rh5 {[%clk 0:00:14.6]}
44... Rc3 {[%clk 0:00:08.7]} 45. Re5 {[%clk 0:00:13.6]} 45... Rc4 {[%clk
0:00:09.2]} 46. Re4 {[%clk 0:00:11.3]} 46... Rxe4 {[%clk 0:00:09.8]} 47. Ka6
{[%clk 0:00:11.1]} 47... Ra4# {[%clk 0:00:10.7]} 0-1

[Event "Late-Titled-Tuesday-Blitz-June-18-2024"]
[Site "Chess.com"]
[Date "2024.06.18"]
[Round "3"]
[White "bascheyaro"]
[Black "HajiyevKanan"]
[Result "0-1"]
[WhiteElo "2829"]
[BlackElo "2565"]
[TimeControl "180+1"]
[EndTime "14:29:49 PDT"]
[Termination "HajiyevKanan won on time"]

1. d4 {[%clk 0:02:58.1]} 1... a6 {[%clk 0:03:00.9]} 2. e4 {[%clk 0:02:57.8]}
2... e6 {[%clk 0:02:59.6]} 3. f4 {[%clk 0:02:56.5]} 3... d5 {[%clk 0:02:59.7]}
4. e5 {[%clk 0:02:56.2]} 4... c5 {[%clk 0:03:00.3]} 5. c3 {[%clk 0:02:56.5]}
5... Nc6 {[%clk 0:03:00.9]} 6. Nf3 {[%clk 0:02:56.5]} 6... Nh6 {[%clk
0:03:01.1]} 7. Be3 {[%clk 0:02:42.9]} 7... Qb6 {[%clk 0:03:00.8]} 8. Qd2 {[%clk
0:02:42.9]} 8... Nf5 {[%clk 0:02:56.1]} 9. Bf2 {[%clk 0:02:42.9]} 9... h5 {[%clk
0:02:56.7]} 10. Be2 {[%clk 0:02:41]} 10... Bd7 {[%clk 0:02:55]} 11. O-O {[%clk
0:02:40.5]} 11... Be7 {[%clk 0:02:48.9]} 12. a3 {[%clk 0:02:40]} 12... Na5
{[%clk 0:02:47.8]} 13. Qc2 {[%clk 0:01:33.2]} 13... Qb3 {[%clk 0:02:47.3]} 14.
Bd1 {[%clk 0:01:28.4]} 14... Qxc2 {[%clk 0:02:47.1]} 15. Bxc2 {[%clk 0:01:29.3]}
15... cxd4 {[%clk 0:02:36.3]} 16. Bxf5 {[%clk 0:01:26.7]} 16... exf5 {[%clk
0:02:36.5]} 17. Nxd4 {[%clk 0:01:24.4]} 17... Rc8 {[%clk 0:02:30.6]} 18. Nd2
{[%clk 0:01:24]} 18... g6 {[%clk 0:02:27.2]} 19. Rfe1 {[%clk 0:01:15.7]} 19...
Be6 {[%clk 0:02:27.2]} 20. N2f3 {[%clk 0:01:13.5]} 20... O-O {[%clk 0:02:24.2]}
21. Rad1 {[%clk 0:01:12.4]} 21... Nc4 {[%clk 0:02:23.6]} 22. Re2 {[%clk
0:01:12.1]} 22... Rfd8 {[%clk 0:02:20.8]} 23. Bh4 {[%clk 0:01:10.6]} 23... Bxh4
{[%clk 0:02:17.5]} 24. Nxh4 {[%clk 0:01:11.5]} 24... b5 {[%clk 0:02:17.3]} 25.
Nhf3 {[%clk 0:01:10.3]} 25... Kf8 {[%clk 0:02:13.1]} 26. Ng5 {[%clk 0:00:58.4]}
26... Ke7 {[%clk 0:02:11.4]} 27. h3 {[%clk 0:00:58.7]} 27... Rd7 {[%clk
0:02:08.7]} 28. Kf2 {[%clk 0:00:58.3]} 28... Rb7 {[%clk 0:02:08.1]} 29. Rh1
{[%clk 0:00:46.3]} 29... a5 {[%clk 0:01:51.1]} 30. Rc2 {[%clk 0:00:37.1]} 30...
Bd7 {[%clk 0:01:22.8]} 31. Rd1 {[%clk 0:00:31.2]} 31... Be6 {[%clk 0:01:22.7]}
32. Ke2 {[%clk 0:00:27.7]} 32... Rcc7 {[%clk 0:01:20.1]} 33. Rg1 {[%clk
0:00:21.6]} 33... Rb8 {[%clk 0:01:20.2]} 34. g4 {[%clk 0:00:19.8]} 34... fxg4
{[%clk 0:01:19]} 35. Ngxe6 {[%clk 0:00:20.2]} 35... fxe6 {[%clk 0:01:16.9]} 36.
hxg4 {[%clk 0:00:20.9]} 36... h4 {[%clk 0:01:06.5]} 37. Kf3 {[%clk 0:00:17.2]}
37... g5 {[%clk 0:01:04.5]} 38. Re2 {[%clk 0:00:13.3]} 38... gxf4 {[%clk
0:01:02.1]} 39. g5 {[%clk 0:00:13.2]} 39... b4 {[%clk 0:01:00.3]} 40. cxb4
{[%clk 0:00:12.3]} 40... axb4 {[%clk 0:01:01.2]} 41. a4 {[%clk 0:00:11.8]} 41...
Nb6 {[%clk 0:01:00.4]} 42. b3 {[%clk 0:00:10.9]} 42... Rc3+ {[%clk 0:00:59.7]}
43. Kxf4 {[%clk 0:00:11.1]} 43... Rf8+ {[%clk 0:00:59.1]} 44. Kg4 {[%clk
0:00:11.7]} 44... h3 {[%clk 0:00:50.8]} 45. g6 {[%clk 0:00:07.2]} 45... h2
{[%clk 0:00:47.1]} 46. Rxh2 {[%clk 0:00:06.9]} 46... Nd7 {[%clk 0:00:40.5]} 47.
Rh7+ {[%clk 0:00:07]} 47... Ke8 {[%clk 0:00:41.2]} 48. Re1 {[%clk 0:00:04.3]}
48... Rg8 {[%clk 0:00:32]} 49. g7 {[%clk 0:00:02.2]} 49... Kf7 {[%clk
0:00:30.7]} 50. Rf1+ {[%clk 0:00:01.6]} 50... Ke7 {[%clk 0:00:31.3]} 0-1

[Event "Late-Titled-Tuesday-Blitz-June-18-2024"]
[Site "Chess.com"]
[Date "2024.06.18"]
[Round "3"]
[White "Alina_Gumerovna"]
[Black "ATM622"]
[Result "0-1"]
[WhiteElo "2202"]
[BlackElo "2539"]
[TimeControl "180+1"]
[EndTime "14:29:49 PDT"]
[Termination "ATM622 won on time"]

1. e4 {[%clk 0:02:59.7]} 1... c6 {[%clk 0:02:59.2]} 2. d4 {[%clk 0:02:59.9]}
2... d5 {[%clk 0:02:59.1]} 3. exd5 {[%clk 0:03:00.3]} 3... cxd5 {[%clk
0:02:59.4]} 4. Bd3 {[%clk 0:03:01.2]} 4... Nc6 {[%clk 0:02:59.2]} 5. c3 {[%clk
0:03:02.1]} 5... g6 {[%clk 0:02:58.9]} 6. Ne2 {[%clk 0:03:02.8]} 6... Bg7 {[%clk
0:02:58.1]} 7. O-O {[%clk 0:03:03.2]} 7... Nf6 {[%clk 0:02:58]} 8. h3 {[%clk
0:03:02.4]} 8... O-O {[%clk 0:02:58.1]} 9. Bf4 {[%clk 0:03:01.9]} 9... Bf5
{[%clk 0:02:57.7]} 10. Na3 {[%clk 0:03:00.4]} 10... a6 {[%clk 0:02:57.4]} 11.
Nc2 {[%clk 0:03:00.5]} 11... Rc8 {[%clk 0:02:56.9]} 12. Ne3 {[%clk 0:02:59.5]}
12... Bxd3 {[%clk 0:02:56.5]} 13. Qxd3 {[%clk 0:03:00.4]} 13... Re8 {[%clk
0:02:55.2]} 14. a4 {[%clk 0:02:54]} 14... Na5 {[%clk 0:02:50.1]} 15. Rac1 {[%clk
0:02:07.8]} 15... Qd7 {[%clk 0:02:46.3]} 16. Be5 {[%clk 0:01:57.2]} 16... Nb3
{[%clk 0:02:41.7]} 17. Rc2 {[%clk 0:01:52.1]} 17... Ne4 {[%clk 0:02:35.2]} 18.
Bxg7 {[%clk 0:01:49.1]} 18... Kxg7 {[%clk 0:02:35.3]} 19. f3 {[%clk 0:01:48.8]}
19... Nf6 {[%clk 0:02:35.3]} 20. Nf4 {[%clk 0:01:42.8]} 20... Qd6 {[%clk
0:02:27.1]} 21. g3 {[%clk 0:01:31]} 21... Kg8 {[%clk 0:02:24.9]} 22. Kg2 {[%clk
0:01:24]} 22... Na5 {[%clk 0:02:12.9]} 23. Re1 {[%clk 0:00:42.7]} 23... Nc4
{[%clk 0:02:12.1]} 24. Nxc4 {[%clk 0:00:42.9]} 24... dxc4 {[%clk 0:02:09.9]} 25.
Qe2 {[%clk 0:00:38.7]} 25... Nd7 {[%clk 0:02:06.6]} 26. h4 {[%clk 0:00:29.4]}
26... e5 {[%clk 0:02:06.5]} 27. dxe5 {[%clk 0:00:23]} 27... Rxe5 {[%clk
0:02:07.4]} 28. Qf2 {[%clk 0:00:17.9]} 28... Rce8 {[%clk 0:02:07.1]} 29. Rxe5
{[%clk 0:00:14.9]} 29... Nxe5 {[%clk 0:02:07]} 30. Rd2 {[%clk 0:00:10.6]} 30...
Nd3 {[%clk 0:02:03.3]} 31. Nxd3 {[%clk 0:00:03.6]} 31... cxd3 {[%clk 0:02:04.2]}
32. Qd4 {[%clk 0:00:02.1]} 32... Qc6 {[%clk 0:01:44]} 33. Qxd3 {[%clk
0:00:02.7]} 33... Qxa4 {[%clk 0:01:43.8]} 34. Kh3 {[%clk 0:00:03.3]} 34... Qa1
{[%clk 0:01:37.3]} 35. Kg2 {[%clk 0:00:02.9]} 35... Qe1 {[%clk 0:01:33.7]} 36.
g4 {[%clk 0:00:02.7]} 36... Qxh4 {[%clk 0:01:32.1]} 37. Qd7 {[%clk 0:00:02.9]}
37... Qe7 {[%clk 0:01:18]} 38. Qd5 {[%clk 0:00:02.5]} 38... Qe1 {[%clk
0:01:11.3]} 39. Qd7 {[%clk 0:00:02.5]} 39... Re2+ {[%clk 0:01:10.7]} 40. Rxe2
{[%clk 0:00:02.7]} 40... Qxe2+ {[%clk 0:01:11.6]} 41. Kg3 {[%clk 0:00:03.3]}
41... Qe5+ {[%clk 0:01:08.1]} 42. Kg2 {[%clk 0:00:03.3]} 42... Qb8 {[%clk
0:01:01.5]} 43. Qd5 {[%clk 0:00:03]} 43... b5 {[%clk 0:00:59.6]} 44. Qc6 {[%clk
0:00:03.3]} 44... a5 {[%clk 0:00:59.1]} 45. Qa6 {[%clk 0:00:03.6]} 45... a4
{[%clk 0:00:56.7]} 46. Qa5 {[%clk 0:00:03.5]} 46... Kg7 {[%clk 0:00:52.6]} 47.
Qb4 {[%clk 0:00:03.1]} 47... Qe5 {[%clk 0:00:49.9]} 48. Kf2 {[%clk 0:00:02.9]}
48... h5 {[%clk 0:00:47.8]} 49. gxh5 {[%clk 0:00:01.5]} 49... gxh5 {[%clk
0:00:48]} 50. Kg2 {[%clk 0:00:01.5]} 50... Kg6 {[%clk 0:00:45.9]} 51. Qh4 {[%clk
0:00:01.7]} 51... Qg5+ {[%clk 0:00:45.7]} 0-1